{"text_format":"1","workbook":"xlsx","n_sheets":7,"sheets":["Main","Titles","Loop_Data","Data Mapping","Tdata","Template","Drawings"],"not_rendered":{"charts":0,"images":9,"macros":1,"external_links":0,"defined_names":4,"comments":0,"pivot_tables":0},"unopened":[],"bounds":{"document_bytes":16777216,"sheet_cells":100000,"rows_first":2000,"rows_last":500,"rows_between":2000,"halvings":0,"cell_chars":16384,"cell_head_chars":4096},"cells_cut":0,"cells_raw":0,"read":"whole","date_system":"1900"}

{"sheet":"Main","index":0,"n_rows":12,"n_cols":2,"rows_kept":12,"cut":false,"hidden":false,"merged":[[15,1,18,3],[22,1,22,12],[15,12,18,12]]}
[]
[1,"LOOP DRAWING GENERATOR: DEMO VERSION"]
[]
[null,"This tool generates loop drawings from user data in the sheets \"Titles\" and \"Loop_Data\"."]
[]
[null,"The \"Data Mapping\" sheet provides details on how the data is linked to the drawings."]
[]
[null,"After populating the data, click the button \"Generate Loop Drawings\" to generate the drawings"]
[]
[]
[]
[null,"This is a demo version, it supports a maximum of 10 instruments and generates output in PDF format only."]

{"sheet":"Titles","index":1,"n_rows":25,"n_cols":7,"rows_kept":25,"cut":false,"hidden":false,"merged":[[24,2,24,6],[16,1,16,4],[8,1,8,6],[0,1,0,6],[2,2,2,3],[3,2,3,3],[4,2,4,3],[5,2,5,3],[6,2,6,3],[19,1,19,6],[23,2,23,6]]}
[null,"TITLE BLOCK"]
[]
[null,"Company ","XLNControl Pty Ltd"]
[null,"Document No","XLN-DRW-INST-0231"]
[null,"Project","Loop Drawings Demo"]
[null,"Project No","PRJ-EXP-2020"]
[null,"Additional Info","Utlitities Area Expansion"]
[]
[null,"Revision Information "]
[null,"Revision","Date","Revision Comment","Drawn","Checked","Approved"]
[null,1,"2020-02-15","Issued for comment","NM","MN","XLNC"]
[null,2,"2020-04-25","Issued for construction","NM","MN","XLNC"]
[]
[]
[]
[]
[null,"Logo file Path"]
[]
[]
[null,"DRAWING HEADER"]
[]
[null,"This location information is shown on the top of all the loop drawings"]
[]
[null,"Location 1","FIELD"]
[null,"Location 2","REMOTE I/O"]

{"sheet":"Loop_Data","index":2,"n_rows":11,"n_cols":42,"rows_kept":11,"cut":false,"hidden":false,"merged":[[0,37,0,41],[0,0,0,1],[0,21,0,24],[0,25,0,29],[0,14,0,20],[0,32,0,36],[0,2,0,13],[0,30,0,31]]}
["Loop",null,"Instrument",null,null,null,null,null,null,null,null,null,null,null,"Junction Box",null,null,null,null,null,null,"Marshalling Rack",null,null,null,"Barrier / Relay",null,null,null,null,"ext power from relay",null,"Field termination assembly",null,null,null,null,"Control System"]
["Loop Name","Service","Tag Name","Description","Additional field1","Additional field2","Shielded?","Terminal 1","Terminal 2","Ground Terminal","Wire color1","Wire color2","Instrument Cable","Additional field","Name","Terminal 1","Terminal 2","Ground Terminal","Cable Name","Pair no","Additional field","Name","Terminal 1","Terminal 2","Ground Terminal","Name","Left Terminal 1","Left Terminal 2","Right Terminal 1","Right Terminal 2","Location","Supply","Name","Terminal 1","Terminal 2","System Cable","Additional field","Controller","Tag","Rack","Slot","Channel"]
["T-23432","Temp Control (2 wire loops)","TT-23432","Reboiler temperature","0 to 200 °C ","Make: XLNC","Yes",1,2,3,"BLK","WHT","TT32","3 sq mm","JB-234",45,46,47,"J-234",3,"24 core","MR-234","1+","1-","G",null,null,null,null,null,null,null,"FTA-23",4,5,"SYS-4","Type 1","PLC-1","TI23432",2,5,4]
["T-23432","Temp Control (2 wire loops)","TV-23432","Temp Control Valve","0 to 100 %","Model: XLNC","No",1,2,null,"BLK","WHT","TV32","3 sq mm","JB-234",50,51,null,"J-234",2,"24 core","MR-234","5+","5-",null,null,null,null,null,null,null,null,"FTA-31",1,2,"SYS-7","Type 2","PLC-1","TV23432",3,5,2]
["A-54761","Process Analyser (4 wire loop)","AI-54761","Dew Point Analyser","0 to 50 °C","Make: APS","Yes","1+","1-","G","BLK","WHT","AT12","3 sq mm","JB-235",13,14,15,"J-235",1,"12 core","MR-235","3+","3-","G",null,null,null,null,null,null,null,"FTA-22",5,3,"SYS-4","Type 1","PLC-1","AI54761",1,5,3]
["A-54761","Process Analyser (4 wire loop)","AP-54761","230 V AC Power",null,null,"Yes",3,4,5,"RED","BRN","AP23","4 sq mm",null,null,null,null,null,null,null,"SS12 / Q24","L","N","E"]
["F-32654","Flow meter (4 wire loop)","FI-32654","Mass flow meter","0 to 100 kg/h","Model: XLNC","No",1,2,null,"BLK","WHT","F11","3 sq mm","JB-234",25,26,null,"J-237",10,"12 core","MR-237",8,9,null,"BR1","A","B","C","D",null,null,"FTA-23",5,6,"SYS-4","Type 1","PLC-1","FI32654",1,2,4]
["F-32654","Flow meter (4 wire loop)","FP-32654","24 V DC Supply",null,null,"No","P","N",null,"RED","BLK","P11","4 sq mm",null,null,null,null,null,null,null,"MR-237",10,11]
["P-33432","Vessel Pressure (Straight run cable)","PT-33432","Vessel Pressure","0 to 200 psi","Make: XLNC","Yes",1,2,3,"BLK","WHT","PT32","3 sq mm",null,null,null,null,null,null,null,"MR-304",2,3,4,null,null,null,null,null,null,null,"FTA-23",7,8,"SYS-4","Type 1","PLC-2","PI33432",4,1,4]
["T-73432","Reactor Temperature (Loop with IS Barrier)","TT-73432","Reactor temperature","0 to 350 °C ","Model: XLNC","Yes",1,2,3,"BLK","WHT","F11","4 sq mm","JB-234",25,26,27,"J-234",5,"12 core","MR-238",8,9,10,"BR1","A","B","C","D",null,null,"FTA-32",5,6,"SYS-4","Type 1","PLC-2","TT73432",2,2,4]
["S-73454","Siren (Loops with relay)","SN-73454","Converyor Siren 1","Warning siren","Model: XLNC","Yes",1,2,3,"RED","BLK","F12","4 sq mm","JB-235",25,26,27,"J-235",3,"12 core","MR-338",8,9,10,"RL1",1,2,3,4,"Bottom Wire"," - 24 V +","FTA-30",5,6,"SYS-5","Type 3","PLC-3","SN73454",3,2,2]

{"sheet":"Data Mapping","index":3,"n_rows":99,"n_cols":43,"rows_kept":99,"cut":false,"hidden":false,"merged":[[47,4,47,6],[48,4,48,6],[49,4,49,6],[64,4,64,6],[39,4,39,6],[40,4,40,6],[41,4,41,6],[42,4,42,6],[43,4,43,6],[96,1,96,2],[66,4,66,6],[67,4,67,6],[68,4,68,6],[69,4,69,6],[72,4,72,6],[78,4,78,6],[79,4,79,6],[80,4,80,6],[81,4,81,6],[70,1,71,1],[70,4,70,6],[71,4,71,6],[96,3,96,14],[77,1,81,1],[77,4,77,6],[40,1,41,1],[73,4,73,6],[74,4,74,6],[75,4,75,6],[76,4,76,6],[61,4,61,6],[62,4,62,6],[63,4,63,6],[65,4,65,6],[56,4,56,6],[57,4,57,6],[54,4,54,6],[55,4,55,6],[44,4,44,6],[45,4,45,6],[46,4,46,6],[42,1,53,1],[54,1,60,1],[61,1,64,1],[65,1,69,1],[72,1,76,1],[96,38,96,42],[96,15,96,21],[96,22,96,25],[96,26,96,30],[96,31,96,32],[96,33,96,37]]}
[null,"DATA MAPPING"]
[]
[null,"This sheet shows how the data in the \"Titles\" and \"Data\" sheets are mapped on the loop drawings"]
[]
[null,"SHEET \"Titles\""]
[]
[null,"Data from this sheet is shown on the Titles as follows."]
[null,"if logo file path is blank,  no logo will be shown in the drawings."]
[]
[]
[]
[]
[]
[]
[]
[]
[]
[]
[]
[]
[]
[]
[]
[]
[]
[]
[]
[]
[]
[]
[null,"The location fields are shown in the header bar of all loop drawings"]
[]
[]
[]
[]
[null,"SHEET \"Loop_Data\""]
[]
[null,"NOTE: Leave the FTA name blank to create a power loop"]
[]
[null,"CATEGORY","FIELD NAME","EXAMPLE","NOTES"]
[null,"Loop","Loop Name","S-73454","Shown in the Titles. This is a required field."]
[null,null,"Service","Siren (Loops with relay)","Loop Description - shown in the Titles"]
[null,"Instrument","Tag Name","SN-73454"]
[null,null,"Description","Converyor Siren 1"]
[null,null,"Additional field1","Warning Siren"]
[null,null,"Additional field2","Model: XLNC"]
[null,null,"Shielded?","Yes","Choose Yes or No from the dropdown box. "]
[null,null,"Terminal 1",1,"Terminal 1 is the topmost terminal"]
[null,null,"Terminal 2",2,"Terminal 2 shows below terminal 1"]
[null,null,"Ground Terminal",3,"Ground Terminal is the lowest teminal"]
[null,null,"Wire color1","RED"]
[null,null,"Wire color2","BLK"]
[null,null,"Instrument Cable","F12"]
[null,null,"Additional field","4 sq mm"]
[null,"Junction Box","Name","JB-235","If Junction Box is not required, leave this field blank. Other  fields will be shaded and not be used in the drawing"]
[null,null,"Terminal 1",25,"Terminal 1 is the topmost terminal"]
[null,null,"Terminal 2",26,"Terminal 2 shows below terminal 1"]
[null,null,"Ground Terminal",27,"Ground Terminal is the lowest teminal"]
[null,null,"Cable Name","J-235"]
[null,null,"Pair no",3]
[null,null,"Additional field","12 core"]
[null,"Marshalling Rack","Name","MR-338","If Marshalling Rack is not required, leave this field blank. Other fields in this section will be shaded and not be used in the drawing\nNote that if Marshalling Rack is not used, the shield wire is not shown either."]
[null,null,"Terminal 1",8,"Terminal 1 is the topmost terminal"]
[null,null,"Terminal 2",9,"Terminal 2 shows below terminal 1"]
[null,null,"Ground Terminal",10,"Ground Terminal is the lowest teminal"]
[null,"Barrier","Name","RL1","If barrier is not required, leave this field blank. Other fields in this section will be shaded and not be used in the drawing"]
[null,null,"Left Terminal 1",1,"Top terminal on the left side of the barrier"]
[null,null,"Left Terminal 2",2,"Bottom terminal on the left side of the barrier"]
[null,null,"Right Terminal 1",3,"Top terminal on the right side of the barrier"]
[null,null,"Right Terminal 2",4,"Bottom terminal on the right side of the barrier"]
[null,"ext power from relay","Location","Bottom Wire","Specify if power is supplied from the top or bottom wire"]
[null,null,"Supply"," - 24 V +","Voltage and polarity of power supply"]
[null,"field termination assembly","Name","FTA-30","LEAVE BLANK TO CREATE A POWER LOOP"]
[null,null,"Terminal 1",5]
[null,null,"Terminal 2",6]
[null,null,"System Cable","SYS-5","If there is no system cable tag, leave this field blank"]
[null,null,"Additional field","Type 3"]
[null,"Control System","Controller","PLC - 3","Name of PLC / DCS controller"]
[null,null,"Tag","SN73454","Control System Tag Name"]
[null,null,"Rack",3]
[null,null,"Slot",2]
[null,null,"Channel",2]
[]
[]
[]
[]
[]
[]
[]
[]
[]
[]
[]
[]
[]
[]
[null,"Loop",null,"Instrument",null,null,null,null,null,null,null,null,null,null,null,"Junction Box",null,null,null,null,null,null,"Marshalling Rack",null,null,null,"Barrier / Relay",null,null,null,null,"ext power from relay",null,"FTA",null,null,null,null,"Control System"]
[null,"Loop Name","Service","Tag Name","Description","Additional field1","Additional field2","Shielded?","Terminal 1","Terminal 2","Ground Terminal","Wire color1","Wire color2","Instrument Cable","Additional field","Name","Terminal 1","Terminal 2","Ground Terminal","Cable Name","Pair no","Additional field","Name","Terminal 1","Terminal 2","Ground Terminal","Name","Left Terminal 1","Left Terminal 2","Right Terminal 1","Right Terminal 2","Location","Supply","Name","Terminal 1","Terminal 2","System Cable","Additional field","Controller","Tag","Rack","Slot","Channel"]
[null,"S-73454","Siren (Loops with relay)","SN-73454","Converyor Siren 1","Warning siren","Model: XLNC","Yes",1,2,3,"RED","BLK","F12","4 sq mm","JB-235",25,26,27,"J-235",3,"12 core","MR-338",8,9,10,"RL1",1,2,3,4,"Bottom Wire"," - 24 V +","FTA-30",5,6,"SYS-5","Type 3","PLC-3","SN73454",3,2,2]

{"sheet":"Tdata","index":4,"n_rows":1,"n_cols":44,"rows_kept":1,"cut":false,"hidden":true,"merged":[]}
["Order","PageNo","Loop Name","Service","Tag Name","Description","Additional field1","Additional field2","Shielded?","Terminal 1","Terminal 2","Ground Terminal","Wire color1","Wire color2","Instrument Cable","Additional field","Name","Terminal 1","Terminal 2","Ground Terminal","Cable Name","Pair no","Additional field","Name","Terminal 1","Terminal 2","Ground Terminal","Name","Left Terminal 1","Left Terminal 2","Right Terminal 1","Right Terminal 2","Location","Supply","Name","Terminal 1","Terminal 2","System Cable","Additional field","Controller","Tag","Rack","Slot","Channel"]

{"sheet":"Template","index":5,"n_rows":137,"n_cols":50,"rows_kept":137,"cut":false,"hidden":true,"merged":[[119,6,120,7],[114,1,116,5],[117,1,118,5],[119,1,120,5],[112,5,113,8],[112,9,113,14],[114,9,115,14],[100,48,101,51],[119,16,120,17],[112,15,113,18],[112,19,113,24],[114,19,115,24],[119,29,120,31],[115,26,116,27],[117,26,118,27],[119,26,120,27],[112,25,113,28],[104,44,105,47],[106,44,107,47],[104,40,105,42],[115,6,116,7],[117,6,118,7],[115,16,116,17],[108,44,109,47],[78,2,79,4],[76,2,77,4],[72,13,73,14],[82,5,83,10],[72,5,73,10],[74,5,75,10],[76,5,77,10],[80,11,81,12],[78,11,79,12],[82,11,83,12],[72,11,73,12],[74,11,75,12],[78,5,79,10],[80,5,81,10],[74,13,75,14],[72,2,73,4],[82,2,83,4],[78,13,79,14],[72,40,76,51],[72,37,76,39],[74,2,75,4],[95,1,96,7],[93,15,94,50],[95,15,96,50],[76,15,77,16],[76,11,77,12],[80,0,81,1],[78,0,79,1],[72,15,73,16],[76,13,77,14],[74,17,76,36],[78,15,79,16],[80,15,81,16],[82,13,83,14],[82,15,83,16],[72,17,73,19],[74,15,75,16],[77,17,78,19],[79,17,83,36],[76,0,77,1],[74,0,75,1],[72,0,73,1],[102,44,103,47],[102,48,103,51],[116,19,117,24],[115,41,116,44],[117,41,118,44],[115,45,116,50],[117,45,118,46],[117,47,118,48],[117,49,118,50],[112,45,113,50],[112,34,113,38],[82,0,83,1],[93,0,94,0],[95,0,96,0],[93,8,94,14],[89,1,91,50],[93,1,94,7],[95,8,96,14],[98,44,99,47],[98,48,99,51],[80,47,83,51],[80,13,81,14],[80,2,81,4],[86,1,87,24],[86,25,87,50],[131,17,134,36],[136,17,139,36],[77,40,79,51],[119,49,120,50],[112,39,113,41],[119,47,120,48],[82,37,83,38],[77,37,79,39],[80,40,83,46],[80,37,81,39],[127,17,130,36],[115,35,116,35],[115,36,118,36],[115,37,116,37],[117,40,118,40],[117,35,118,35],[117,37,118,37],[115,40,116,40],[119,45,120,46],[117,16,118,17],[100,44,101,47],[104,48,105,51],[106,48,107,51],[108,48,109,51]]}
[]
[]
[]
[]
[]
[]
[]
[]
[]
[]
[]
[]
[]
[]
[]
[]
[]
[]
[]
[]
[]
[]
[]
[]
[]
[]
[]
[]
[]
[]
[]
[]
[]
[]
[]
[]
[]
[]
[]
[]
[]
[]
[]
[]
[]
[]
[]
[]
[]
[]
[]
[]
[]
[]
[]
[]
[]
[]
[]
[]
[]
[]
[]
[]
[]
[]
[]
[]
[]
[]
[]
[]
[{"$f":"IF(ISBLANK(Titles!B15),\"\",Titles!B15)","v":""},null,{"$f":"IF(ISBLANK(Titles!C15),\"\",Titles!C15)","v":""},null,null,{"$f":"IF(ISBLANK(Titles!D15),\"\",Titles!D15)","v":""},null,null,{"$f":"IF(ISBLANK(Titles!#REF!),\"\",Titles!#REF!)","v":{"$error":"#REF!"}},null,null,{"$f":"IF(ISBLANK(Titles!E15),\"\",Titles!E15)","v":""},null,{"$f":"IF(ISBLANK(Titles!F15),\"\",Titles!F15)","v":""},null,{"$f":"IF(ISBLANK(Titles!G15),\"\",Titles!G15)","v":""},null,"LOOP",null,null,null,null,null,null,null,null,null,null,null,null,null,null,null,null,null,null,null,null,null,null,{"$f":"IF(ISBLANK(Titles!C3),\"\",Titles!C3)","v":"XLNControl Pty Ltd"}]
[]
[{"$f":"IF(ISBLANK(Titles!B14),\"\",Titles!B14)","v":""},null,{"$f":"IF(ISBLANK(Titles!C14),\"\",Titles!C14)","v":""},null,null,{"$f":"IF(ISBLANK(Titles!D14),\"\",Titles!D14)","v":""},null,null,{"$f":"IF(ISBLANK(Titles!#REF!),\"\",Titles!#REF!)","v":{"$error":"#REF!"}},null,null,{"$f":"IF(ISBLANK(Titles!E14),\"\",Titles!E14)","v":""},null,{"$f":"IF(ISBLANK(Titles!F14),\"\",Titles!F14)","v":""},null,{"$f":"IF(ISBLANK(Titles!G14),\"\",Titles!G14)","v":""},null,{"$f":"IF(D125=0,\"\",D125)","v":""}]
[]
[{"$f":"IF(ISBLANK(Titles!B13),\"\",Titles!B13)","v":""},null,{"$f":"IF(ISBLANK(Titles!C13),\"\",Titles!C13)","v":""},null,null,{"$f":"IF(ISBLANK(Titles!D13),\"\",Titles!D13)","v":""},null,null,{"$f":"IF(ISBLANK(Titles!#REF!),\"\",Titles!#REF!)","v":{"$error":"#REF!"}},null,null,{"$f":"IF(ISBLANK(Titles!E13),\"\",Titles!E13)","v":""},null,{"$f":"IF(ISBLANK(Titles!F13),\"\",Titles!F13)","v":""},null,{"$f":"IF(ISBLANK(Titles!G13),\"\",Titles!G13)","v":""}]
[null,null,null,null,null,null,null,null,null,null,null,null,null,null,null,null,null,"SERVICE",null,null,null,null,null,null,null,null,null,null,null,null,null,null,null,null,null,null,null,"DOCUMENT",null,null,{"$f":"IF(ISBLANK(Titles!C4),\"\",Titles!C4)","v":"XLN-DRW-INST-0231"}]
[{"$f":"IF(ISBLANK(Titles!B12),\"\",Titles!B12)","v":2},null,{"$f":"IF(ISBLANK(Titles!C12),\"\",Titles!C12)","v":"2020-04-25"},null,null,{"$f":"IF(ISBLANK(Titles!D12),\"\",Titles!D12)","v":"Issued for construction"},null,null,{"$f":"IF(ISBLANK(Titles!#REF!),\"\",Titles!#REF!)","v":{"$error":"#REF!"}},null,null,{"$f":"IF(ISBLANK(Titles!E12),\"\",Titles!E12)","v":"NM"},null,{"$f":"IF(ISBLANK(Titles!F12),\"\",Titles!F12)","v":"MN"},null,{"$f":"IF(ISBLANK(Titles!G12),\"\",Titles!G12)","v":"XLNC"}]
[null,null,null,null,null,null,null,null,null,null,null,null,null,null,null,null,null,{"$f":"IF(E125=0,\"\",E125)","v":""}]
[{"$f":"IF(ISBLANK(Titles!B11),\"\",Titles!B11)","v":1},null,{"$f":"IF(ISBLANK(Titles!C11),\"\",Titles!C11)","v":"2020-02-15"},null,null,{"$f":"IF(ISBLANK(Titles!D11),\"\",Titles!D11)","v":"Issued for comment"},null,null,{"$f":"IF(ISBLANK(Titles!#REF!),\"\",Titles!#REF!)","v":{"$error":"#REF!"}},null,null,{"$f":"IF(ISBLANK(Titles!E11),\"\",Titles!E11)","v":"NM"},null,{"$f":"IF(ISBLANK(Titles!F11),\"\",Titles!F11)","v":"MN"},null,{"$f":"IF(ISBLANK(Titles!G11),\"\",Titles!G11)","v":"XLNC"},null,null,null,null,null,null,null,null,null,null,null,null,null,null,null,null,null,null,null,null,null,"PROJECT",null,null,{"$f":"IF(ISBLANK(Titles!C6),\"\",Titles!C6)","v":"PRJ-EXP-2020"},null,null,null,null,null,null,{"$f":"\"SHEET \"&C125&\" OF \"&AW109","v":"SHEET 0 OF 8"}]
[]
["REV #",null,"DATE",null,null,"REVISION COMMENT",null,null,null,null,null,"DRAWN",null,"CHECKD",null,"APPRVD"]
[]
[]
[]
[null,{"$f":"IF(ISBLANK(Titles!C24),\"\",Titles!C24)","v":"FIELD"},null,null,null,null,null,null,null,null,null,null,null,null,null,null,null,null,null,null,null,null,null,null,null,{"$f":"IF(ISBLANK(Titles!C25),\"\",Titles!C25)","v":"REMOTE I/O"}]
[]
[]
[null,{"$f":"\"TABLE OF CONTENTS \" & IF(A94=\"(1/1)\",\"\",A94)","v":"TABLE OF CONTENTS "}]
[]
[]
[]
["(1/1)","SHEET #",null,null,null,null,null,null,"LOOP",null,null,null,null,null,null,"SERVICE"]
[]
[9,{"$f":"A96","v":9},null,null,null,null,null,null,{"$f":"VLOOKUP(A96,Tdata!B:D,2,0)","v":{"$error":"#N/A"}},null,null,null,null,null,null,{"$f":"VLOOKUP(A96,Tdata!B:D,3,0)","v":{"$error":"#N/A"}}]
[]
[]
[null,null,null,null,null,null,null,null,null,null,null,null,null,null,null,null,null,null,null,null,null,null,null,null,null,null,null,null,null,null,null,null,null,null,null,null,null,null,null,null,null,null,null,null,null,null,null,null,"Copy Range"]
[]
[null,null,null,null,null,null,null,null,null,null,null,null,null,null,null,null,null,null,null,null,null,null,null,null,null,null,null,null,null,null,null,null,null,null,null,null,null,null,null,null,null,null,null,null,"Loop 1",null,null,null,"B3"]
[]
[null,null,null,null,null,null,null,null,null,null,null,null,null,null,null,null,null,null,null,null,null,null,null,null,null,null,null,null,null,null,null,null,null,null,null,null,null,null,null,null,null,null,null,null,"Gap",null,null,null,12]
[]
[null,null,null,null,null,null,null,null,null,null,null,null,null,null,null,null,null,null,null,null,null,null,null,null,null,null,null,null,null,null,null,null,null,null,null,null,null,null,null,null,{"$f":"IF(AH125=0,0,AI125)","v":0},null,null,null,"TOC Row",null,null,null,"?"]
[]
[null,null,null,null,null,null,null,null,null,null,null,null,null,null,null,null,null,null,null,null,null,null,null,null,null,null,null,null,null,null,null,null,null,null,null,null,null,null,null,null,null,null,null,null,"Cover",null,null,null,"?"]
[]
[null,null,null,null,null,null,null,null,null,null,null,null,null,null,null,null,null,null,null,null,null,null,null,null,null,null,null,null,null,null,null,null,null,null,null,null,null,null,null,null,null,null,null,null,"Total Sheets",null,null,null,8]
[]
[]
[]
[null,null,null,null,null,{"$f":"F125","v":0},null,null,null,{"$f":"IF(P125=0,\"\",P125)","v":""},null,null,null,null,null,{"$f":"R125","v":0},null,null,null,{"$f":"IF(V125=0,\"\",V125)","v":""},null,null,null,null,null,{"$f":"Y125","v":0},null,null,null,null,null,null,null,null,{"$f":"AC125","v":0},null,null,null,null,{"$f":"AJ125","v":0},null,null,null,null,null,{"$f":"IF(AO125=0,\"\",AO125)","v":""}]
[]
[null,{"$f":"IF(G125=0,\"\",G125)","v":""},null,null,null,null,null,null,null,{"$f":"IF(Q125=0,\"\",Q125)","v":""},null,null,null,null,null,null,null,null,null,{"$f":"IF(X125=0,\"\",X125)","v":""}]
[null,null,null,null,null,null,{"$f":"K125","v":0},null,{"$f":"IF(N125=0,\"\",N125)","v":""},null,null,null,null,null,null,null,{"$f":"S125","v":0},null,null,null,null,null,null,null,null,null,{"$f":"Z125","v":0},null,null,null,null,null,null,null,null,{"$f":"AD125","v":0},null,{"$f":"AF125","v":0},null,null,{"$f":"AK125","v":0},{"$f":"IF(AM125=0,\"\",AM125)","v":""},null,null,null,{"$f":"AP125","v":0}]
[null,null,null,null,null,null,null,null,null,null,null,null,null,null,null,null,null,null,null,{"$f":"IF(W125=0,\"\",\"Pair \" & W125)","v":""}]
[null,{"$f":"IF(H125=0,\"\",H125)","v":""},null,null,null,null,{"$f":"L125","v":0},null,{"$f":"IF(O125=0,\"\",O125)","v":""},null,null,null,null,null,null,null,{"$f":"T125","v":0},null,null,null,null,null,null,null,null,null,{"$f":"AA125","v":0},null,null,null,null,null,null,null,null,{"$f":"AE125","v":0},null,{"$f":"AG125","v":0},null,null,{"$f":"AL125","v":0},{"$f":"IF(AN125=0,\"\",AN125)","v":""},null,null,null,"RACK",null,"SLOT",null,"CHANNEL"]
[]
[null,{"$f":"IF(I125=0,\"\",I125)","v":""},null,null,null,null,{"$f":"M125","v":0},null,null,null,null,null,null,null,null,null,{"$f":"U125","v":0},null,null,null,null,null,null,null,null,null,{"$f":"AB125","v":0},null,null,"INST EARTH",null,null,null,null,null,null,null,null,null,null,null,null,null,null,null,{"$f":"AQ125","v":0},null,{"$f":"AR125","v":0},null,{"$f":"AS125","v":0}]
[]
[]
[]
[null,{"$f":"Tdata!A1","v":"Order"},{"$f":"Tdata!B1","v":"PageNo"},{"$f":"Tdata!C1","v":"Loop Name"},{"$f":"Tdata!D1","v":"Service"},{"$f":"Tdata!E1","v":"Tag Name"},{"$f":"Tdata!F1","v":"Description"},{"$f":"Tdata!G1","v":"Additional field1"},{"$f":"Tdata!H1","v":"Additional field2"},{"$f":"Tdata!I1","v":"Shielded?"},{"$f":"Tdata!J1","v":"Terminal 1"},{"$f":"Tdata!K1","v":"Terminal 2"},{"$f":"Tdata!L1","v":"Ground Terminal"},{"$f":"Tdata!M1","v":"Wire color1"},{"$f":"Tdata!N1","v":"Wire color2"},{"$f":"Tdata!O1","v":"Instrument Cable"},{"$f":"Tdata!P1","v":"Additional field"},{"$f":"Tdata!Q1","v":"Name"},{"$f":"Tdata!R1","v":"Terminal 1"},{"$f":"Tdata!S1","v":"Terminal 2"},{"$f":"Tdata!T1","v":"Ground Terminal"},{"$f":"Tdata!U1","v":"Cable Name"},{"$f":"Tdata!V1","v":"Pair no"},{"$f":"Tdata!W1","v":"Additional field"},{"$f":"Tdata!X1","v":"Name"},{"$f":"Tdata!Y1","v":"Terminal 1"},{"$f":"Tdata!Z1","v":"Terminal 2"},{"$f":"Tdata!AA1","v":"Ground Terminal"},{"$f":"Tdata!AB1","v":"Name"},{"$f":"Tdata!AC1","v":"Left Terminal 1"},{"$f":"Tdata!AD1","v":"Left Terminal 2"},{"$f":"Tdata!AE1","v":"Right Terminal 1"},{"$f":"Tdata!AF1","v":"Right Terminal 2"},{"$f":"Tdata!AG1","v":"Location"},{"$f":"Tdata!AH1","v":"Supply"},{"$f":"Tdata!AI1","v":"Name"},{"$f":"Tdata!AJ1","v":"Terminal 1"},{"$f":"Tdata!AK1","v":"Terminal 2"},{"$f":"Tdata!AL1","v":"System Cable"},{"$f":"Tdata!AM1","v":"Additional field"},{"$f":"Tdata!AN1","v":"Controller"},{"$f":"Tdata!AO1","v":"Tag"},{"$f":"Tdata!AP1","v":"Rack"},{"$f":"Tdata!AQ1","v":"Slot"},{"$f":"Tdata!AR1","v":"Channel"}]
[null,{"$f":"Tdata!A2","v":0},{"$f":"Tdata!B2","v":0},{"$f":"Tdata!C2","v":0},{"$f":"Tdata!D2","v":0},{"$f":"Tdata!E2","v":0},{"$f":"Tdata!F2","v":0},{"$f":"Tdata!G2","v":0},{"$f":"Tdata!H2","v":0},{"$f":"Tdata!I2","v":0},{"$f":"Tdata!J2","v":0},{"$f":"Tdata!K2","v":0},{"$f":"Tdata!L2","v":0},{"$f":"Tdata!M2","v":0},{"$f":"Tdata!N2","v":0},{"$f":"Tdata!O2","v":0},{"$f":"Tdata!P2","v":0},{"$f":"Tdata!Q2","v":0},{"$f":"Tdata!R2","v":0},{"$f":"Tdata!S2","v":0},{"$f":"Tdata!T2","v":0},{"$f":"Tdata!U2","v":0},{"$f":"Tdata!V2","v":0},{"$f":"Tdata!W2","v":0},{"$f":"Tdata!X2","v":0},{"$f":"Tdata!Y2","v":0},{"$f":"Tdata!Z2","v":0},{"$f":"Tdata!AA2","v":0},{"$f":"Tdata!AB2","v":0},{"$f":"Tdata!AC2","v":0},{"$f":"Tdata!AD2","v":0},{"$f":"Tdata!AE2","v":0},{"$f":"Tdata!AF2","v":0},{"$f":"Tdata!AG2","v":0},{"$f":"Tdata!AH2","v":0},{"$f":"Tdata!AI2","v":0},{"$f":"Tdata!AJ2","v":0},{"$f":"Tdata!AK2","v":0},{"$f":"Tdata!AL2","v":0},{"$f":"Tdata!AM2","v":0},{"$f":"Tdata!AN2","v":0},{"$f":"Tdata!AO2","v":0},{"$f":"Tdata!AP2","v":0},{"$f":"Tdata!AQ2","v":0},{"$f":"Tdata!AR2","v":0}]
[]
[]
[null,null,null,null,null,null,null,null,null,null,null,null,null,null,null,null,null,{"$f":"IF(ISBLANK(Titles!C5),\"\",Titles!C5)","v":"Loop Drawings Demo"}]
[]
[]
[]
[null,null,null,null,null,null,null,null,null,null,null,null,null,null,null,null,null,{"$f":"IF(ISBLANK(Titles!C7),\"\",Titles!C7)","v":"Utlitities Area Expansion"}]
[]
[]
[]
[]
[null,null,null,null,null,null,null,null,null,null,null,null,null,null,null,null,null,"LOOP DRAWINGS"]

{"sheet":"Drawings","index":6,"n_rows":0,"n_cols":0,"rows_kept":0,"cut":false,"hidden":true,"merged":[]}